[Event "Late-Titled-Tuesday-Blitz-March-05-2024"]
[Site "Chess.com"]
[Date "2024.03.05"]
[Round "8"]
[White "cthulhuuu"]
[Black "Mikhail_Golubev"]
[Result "0-1"]
[WhiteElo "2433"]
[BlackElo "2629"]
[TimeControl "180+1"]
[EndTime "15:24:00 PST"]
[Termination "Mikhail_Golubev won by checkmate"]

1. e4 {[%clk 0:03:00.9]} 1... c5 {[%clk 0:03:00.2]} 2. Nf3 {[%clk 0:03:00.6]}
2... d6 {[%clk 0:03:00.5]} 3. g3 {[%clk 0:03:00.5]} 3... Nf6 {[%clk 0:02:59.6]}
4. d3 {[%clk 0:02:59.7]} 4... g6 {[%clk 0:02:59.8]} 5. Bg2 {[%clk 0:03:00]} 5...
Bg7 {[%clk 0:03:00.4]} 6. O-O {[%clk 0:03:00.3]} 6... O-O {[%clk 0:03:00.5]} 7.
Re1 {[%clk 0:02:57]} 7... Nc6 {[%clk 0:02:58.2]} 8. e5 {[%clk 0:02:56.7]} 8...
Nxe5 {[%clk 0:02:51]} 9. Nxe5 {[%clk 0:02:57.6]} 9... dxe5 {[%clk 0:02:51.4]}
10. Rxe5 {[%clk 0:02:58]} 10... c4 {[%clk 0:02:37.5]} 11. d4 {[%clk 0:02:48.4]}
11... Ng4 {[%clk 0:02:34.1]} 12. Rd5 {[%clk 0:02:39]} 12... Qb6 {[%clk
0:02:31.6]} 13. c3 {[%clk 0:02:06.9]} 13... Be6 {[%clk 0:02:10.2]} 14. Rc5
{[%clk 0:02:05.3]} 14... Rad8 {[%clk 0:02:02.8]} 15. Nd2 {[%clk 0:01:56.4]}
15... Rxd4 {[%clk 0:01:46.1]} 16. cxd4 {[%clk 0:01:47.3]} 16... Bxd4 {[%clk
0:01:44.9]} 17. Rxc4 {[%clk 0:00:22.8]} 17... Nxf2 {[%clk 0:01:03.8]} 18. Qa4
{[%clk 0:00:11.7]} 18... Bxb2 {[%clk 0:00:52]} 19. Bxb2 {[%clk 0:00:08.6]} 19...
Nh3+ {[%clk 0:00:51.6]} 20. Kh1 {[%clk 0:00:02.2]} 20... Qg1+ {[%clk 0:00:51.4]}
21. Rxg1 {[%clk 0:00:02.2]} 21... Nf2# {[%clk 0:00:52.2]} 0-1

[Event "Late-Titled-Tuesday-Blitz-March-05-2024"]
[Site "Chess.com"]
[Date "2024.03.05"]
[Round "8"]
[White "ThaBarWa"]
[Black "kalxandria"]
[Result "1-0"]
[WhiteElo "2374"]
[BlackElo "2177"]
[TimeControl "180+1"]
[EndTime "15:24:13 PST"]
[Termination "ThaBarWa won by checkmate"]

1. c4 {[%clk 0:03:00.9]} 1... Nf6 {[%clk 0:02:58.5]} 2. Nc3 {[%clk 0:02:55.2]}
2... g6 {[%clk 0:02:57.2]} 3. g3 {[%clk 0:02:54.2]} 3... Bg7 {[%clk 0:02:56]} 4.
Bg2 {[%clk 0:02:54.9]} 4... O-O {[%clk 0:02:55.3]} 5. Nf3 {[%clk 0:02:55.6]}
5... d6 {[%clk 0:02:54.6]} 6. O-O {[%clk 0:02:56.2]} 6... Nc6 {[%clk 0:02:48.4]}
7. Rb1 {[%clk 0:02:56.7]} 7... e5 {[%clk 0:02:38.9]} 8. a3 {[%clk 0:02:56.8]}
8... Bf5 {[%clk 0:02:35.7]} 9. d3 {[%clk 0:02:56.5]} 9... e4 {[%clk 0:02:34]}
10. Nh4 {[%clk 0:02:54.3]} 10... exd3 {[%clk 0:02:29.4]} 11. Nxf5 {[%clk
0:02:54.1]} 11... dxe2 {[%clk 0:02:28.1]} 12. Qxe2 {[%clk 0:02:41.6]} 12... gxf5
{[%clk 0:02:26.8]} 13. Nd5 {[%clk 0:02:39.1]} 13... Nxd5 {[%clk 0:02:22.4]} 14.
Bxd5 {[%clk 0:02:40]} 14... Nd4 {[%clk 0:02:05.7]} 15. Qd3 {[%clk 0:02:38.6]}
15... c6 {[%clk 0:02:04]} 16. Bg2 {[%clk 0:02:39.2]} 16... Qf6 {[%clk
0:01:40.8]} 17. Be3 {[%clk 0:02:31.2]} 17... c5 {[%clk 0:01:33.8]} 18. Bxd4
{[%clk 0:02:26.8]} 18... Qxd4 {[%clk 0:01:31.4]} 19. Qxf5 {[%clk 0:02:27.1]}
19... Qxc4 {[%clk 0:01:27.5]} 20. Be4 {[%clk 0:02:25.7]} 20... Rfe8 {[%clk
0:01:24.4]} 21. Bd5 {[%clk 0:02:20]} 21... Qd4 {[%clk 0:00:39]} 22. Bxf7+ {[%clk
0:02:17.3]} 22... Kh8 {[%clk 0:00:38.3]} 23. Bxe8 {[%clk 0:02:18.2]} 23... Rxe8
{[%clk 0:00:38.4]} 24. Rbd1 {[%clk 0:02:11.8]} 24... Qxb2 {[%clk 0:00:36.3]} 25.
Rxd6 {[%clk 0:02:12.3]} 25... Rf8 {[%clk 0:00:35.8]} 26. Qg5 {[%clk 0:02:01.8]}
26... Bd4 {[%clk 0:00:32.8]} 27. Rd8 {[%clk 0:02:02.4]} 27... Rxd8 {[%clk
0:00:21]} 28. Qxd8+ {[%clk 0:02:03.3]} 28... Kg7 {[%clk 0:00:21]} 29. Qg5+
{[%clk 0:01:58.2]} 29... Kh8 {[%clk 0:00:19.1]} 30. a4 {[%clk 0:01:59.1]} 30...
c4 {[%clk 0:00:13]} 31. Qd8+ {[%clk 0:01:59.2]} 31... Kg7 {[%clk 0:00:12.3]} 32.
Qc7+ {[%clk 0:02:00.1]} 32... Kh8 {[%clk 0:00:08.3]} 33. Qxc4 {[%clk 0:02:01]}
33... a6 {[%clk 0:00:07.8]} 34. Qc8+ {[%clk 0:01:59.4]} 34... Kg7 {[%clk
0:00:07.6]} 35. Qd7+ {[%clk 0:02:00.3]} 35... Kh8 {[%clk 0:00:07.6]} 36. h4
{[%clk 0:02:00.9]} 36... Bc5 {[%clk 0:00:04.2]} 37. Qf7 {[%clk 0:01:44.3]} 37...
Qc3 {[%clk 0:00:03.8]} 38. Kg2 {[%clk 0:01:38.4]} 38... Qc2 {[%clk 0:00:01.8]}
39. Re1 {[%clk 0:01:36.5]} 39... Qxf2+ {[%clk 0:00:01.6]} 40. Qxf2 {[%clk
0:01:35.7]} 40... Bxf2 {[%clk 0:00:01.5]} 41. Kxf2 {[%clk 0:01:36.6]} 41... Kg7
{[%clk 0:00:01.9]} 42. Re7+ {[%clk 0:01:37.5]} 42... Kh6 {[%clk 0:00:02.8]} 43.
Rxb7 {[%clk 0:01:38.1]} 43... Kh5 {[%clk 0:00:03]} 44. Rxh7+ {[%clk 0:01:37.5]}
44... Kg4 {[%clk 0:00:03.5]} 45. Rg7+ {[%clk 0:01:37.4]} 45... Kh3 {[%clk
0:00:04.4]} 46. h5 {[%clk 0:01:37.7]} 46... Kh2 {[%clk 0:00:03.9]} 47. h6 {[%clk
0:01:36.9]} 47... a5 {[%clk 0:00:04.7]} 48. h7 {[%clk 0:01:36.3]} 48... Kh3
{[%clk 0:00:05.6]} 49. h8=Q# {[%clk 0:01:37.2]} 1-0

[Event "Late-Titled-Tuesday-Blitz-March-05-2024"]
[Site "Chess.com"]
[Date "2024.03.05"]
[Round "8"]
[White "ural58"]
[Black "GrotBchess"]
[Result "1-0"]
[WhiteElo "2519"]
[BlackElo "2383"]
[TimeControl "180+1"]
[EndTime "15:24:15 PST"]
[Termination "ural58 won by checkmate"]

1. e4 {[%clk 0:03:00.9]} 1... e6 {[%clk 0:02:55.5]} 2. d4 {[%clk 0:03:00.3]}
2... d5 {[%clk 0:02:55]} 3. Nc3 {[%clk 0:03:00.5]} 3... Nf6 {[%clk 0:02:54.5]}
4. Bg5 {[%clk 0:03:00.3]} 4... h6 {[%clk 0:02:53.2]} 5. Bxf6 {[%clk 0:02:57.6]}
5... Qxf6 {[%clk 0:02:54.1]} 6. Nf3 {[%clk 0:02:52.2]} 6... Bb4 {[%clk
0:02:52.3]} 7. Bd3 {[%clk 0:02:45.7]} 7... O-O {[%clk 0:02:49.2]} 8. O-O {[%clk
0:02:45.5]} 8... c6 {[%clk 0:02:43.1]} 9. Ne2 {[%clk 0:02:43.4]} 9... Nd7 {[%clk
0:02:34.4]} 10. c3 {[%clk 0:02:43.2]} 10... Ba5 {[%clk 0:02:33.6]} 11. e5 {[%clk
0:02:42]} 11... Qd8 {[%clk 0:02:33.5]} 12. Bc2 {[%clk 0:02:41.6]} 12... f5
{[%clk 0:02:31.7]} 13. exf6 {[%clk 0:02:41.1]} 13... Nxf6 {[%clk 0:02:31.7]} 14.
Qd3 {[%clk 0:02:41.1]} 14... Bc7 {[%clk 0:02:31.4]} 15. Ng3 {[%clk 0:02:39.9]}
15... Qd6 {[%clk 0:02:30.4]} 16. Rfe1 {[%clk 0:02:35.7]} 16... Bd7 {[%clk
0:02:29.8]} 17. Ne5 {[%clk 0:02:35.2]} 17... Rae8 {[%clk 0:02:28.8]} 18. Nh5
{[%clk 0:02:34]} 18... Ne4 {[%clk 0:01:59.8]} 19. Rxe4 {[%clk 0:02:21.8]} 19...
dxe4 {[%clk 0:01:55.9]} 20. Qxe4 {[%clk 0:02:22.4]} 20... Rf5 {[%clk 0:01:53.9]}
21. g4 {[%clk 0:02:12.7]} 21... Qe7 {[%clk 0:01:32.6]} 22. gxf5 {[%clk
0:02:08.9]} 22... exf5 {[%clk 0:01:33.5]} 23. Qg2 {[%clk 0:02:04.8]} 23... Bxe5
{[%clk 0:01:31.1]} 24. dxe5 {[%clk 0:02:03.9]} 24... Qxe5 {[%clk 0:01:32]} 25.
Qg6 {[%clk 0:01:51.3]} 25... Re6 {[%clk 0:01:25.1]} 26. Qg3 {[%clk 0:01:43.7]}
26... Qxg3+ {[%clk 0:00:56.1]} 27. hxg3 {[%clk 0:01:41.4]} 27... Re2 {[%clk
0:00:54.8]} 28. Bb3+ {[%clk 0:01:38.6]} 28... Kf8 {[%clk 0:00:54.6]} 29. Rd1
{[%clk 0:01:36.5]} 29... Be8 {[%clk 0:00:51.7]} 30. Nf4 {[%clk 0:01:35.5]} 30...
Rxb2 {[%clk 0:00:51.4]} 31. Ne6+ {[%clk 0:01:28.1]} 31... Ke7 {[%clk 0:00:51]}
32. Nxg7 {[%clk 0:01:27.9]} 32... Bg6 {[%clk 0:00:51.3]} 33. Re1+ {[%clk
0:01:24.9]} 33... Kf6 {[%clk 0:00:51.1]} 34. Ne6 {[%clk 0:01:24]} 34... a5
{[%clk 0:00:48.9]} 35. Nc5 {[%clk 0:01:19.8]} 35... b5 {[%clk 0:00:43.4]} 36.
Re6+ {[%clk 0:01:18.2]} 36... Kg7 {[%clk 0:00:43.4]} 37. Rxc6 {[%clk 0:01:17.6]}
37... a4 {[%clk 0:00:42.6]} 38. Bd5 {[%clk 0:01:14.3]} 38... Bh5 {[%clk
0:00:34]} 39. Kg2 {[%clk 0:01:12.6]} 39... Be2 {[%clk 0:00:30.3]} 40. Ne6+
{[%clk 0:01:11.9]} 40... Kh7 {[%clk 0:00:30]} 41. Nf4 {[%clk 0:01:09.6]} 41...
Bc4 {[%clk 0:00:28.9]} 42. Rc7+ {[%clk 0:01:09.5]} 42... Kh8 {[%clk 0:00:26.6]}
43. Ng6# {[%clk 0:01:08.8]} 1-0

[Event "Late-Titled-Tuesday-Blitz-March-05-2024"]
[Site "Chess.com"]
[Date "2024.03.05"]
[Round "8"]
[White "PapaieDudu"]
[Black "Malev212"]
[Result "0-1"]
[WhiteElo "2452"]
[BlackElo "2634"]
[TimeControl "180+1"]
[EndTime "15:24:22 PST"]
[Termination "Malev212 won on time"]

1. Nf3 {[%clk 0:02:54.6]} 1... g6 {[%clk 0:02:58.9]} 2. d4 {[%clk 0:02:54]} 2...
Bg7 {[%clk 0:02:58.8]} 3. c4 {[%clk 0:02:54.5]} 3... d6 {[%clk 0:02:57.6]} 4.
Nc3 {[%clk 0:02:54.8]} 4... c5 {[%clk 0:02:56.2]} 5. e3 {[%clk 0:02:49.6]} 5...
Nf6 {[%clk 0:02:49.7]} 6. Be2 {[%clk 0:02:48.7]} 6... O-O {[%clk 0:02:49]} 7.
O-O {[%clk 0:02:48.4]} 7... cxd4 {[%clk 0:02:48.8]} 8. exd4 {[%clk 0:02:48.6]}
8... d5 {[%clk 0:02:48.9]} 9. h3 {[%clk 0:02:47.3]} 9... Nc6 {[%clk 0:02:47.9]}
10. Be3 {[%clk 0:02:47.1]} 10... dxc4 {[%clk 0:02:46.6]} 11. Bxc4 {[%clk
0:02:48]} 11... Na5 {[%clk 0:02:46.4]} 12. Bd3 {[%clk 0:02:46.3]} 12... Be6
{[%clk 0:02:46]} 13. Qe2 {[%clk 0:02:45.9]} 13... Nd5 {[%clk 0:02:43.1]} 14. Ne5
{[%clk 0:02:37.4]} 14... Rc8 {[%clk 0:02:37.5]} 15. Rac1 {[%clk 0:02:36.5]}
15... Nxc3 {[%clk 0:02:23.6]} 16. Rxc3 {[%clk 0:02:31.9]} 16... Qd5 {[%clk
0:02:16.5]} 17. Rfc1 {[%clk 0:01:48.2]} 17... Rxc3 {[%clk 0:02:14.1]} 18. Rxc3
{[%clk 0:01:43.4]} 18... Qxa2 {[%clk 0:02:01.9]} 19. Ra3 {[%clk 0:01:31.2]}
19... Qd5 {[%clk 0:02:00.2]} 20. b4 {[%clk 0:01:19.4]} 20... Nb3 {[%clk
0:01:44.5]} 21. Rxa7 {[%clk 0:00:22.5]} 21... Nxd4 {[%clk 0:01:42.2]} 22. Bxd4
{[%clk 0:00:18.9]} 22... Qxd4 {[%clk 0:01:41.6]} 23. Ra5 {[%clk 0:00:18.5]}
23... Rd8 {[%clk 0:01:34.8]} 24. Bc2 {[%clk 0:00:15.2]} 24... Qxb4 {[%clk
0:01:23.5]} 25. Rb5 {[%clk 0:00:14.5]} 25... Qd2 {[%clk 0:01:21]} 26. Qxd2
{[%clk 0:00:10.6]} 26... Rxd2 {[%clk 0:01:19.1]} 27. Be4 {[%clk 0:00:08.5]}
27... Rd1+ {[%clk 0:01:09.8]} 28. Kh2 {[%clk 0:00:08.1]} 28... Re1 {[%clk
0:01:08.9]} 29. f3 {[%clk 0:00:07.3]} 29... f5 {[%clk 0:00:58.5]} 30. Nd3 {[%clk
0:00:03.5]} 30... Re3 {[%clk 0:00:55.5]} 0-1

[Event "Late-Titled-Tuesday-Blitz-March-05-2024"]
[Site "Chess.com"]
[Date "2024.03.05"]
[Round "8"]
[White "jk13"]
[Black "rodp92"]
[Result "1-0"]
[WhiteElo "2647"]
[BlackElo "2490"]
[TimeControl "180+1"]
[EndTime "15:24:25 PST"]
[Termination "jk13 won by resignation"]

1. h4 {[%clk 0:03:00.9]} 1... d5 {[%clk 0:02:48.6]} 2. d4 {[%clk 0:03:00.7]}
2... Nf6 {[%clk 0:02:46.6]} 3. c3 {[%clk 0:03:01.5]} 3... c5 {[%clk 0:02:46.3]}
4. Bg5 {[%clk 0:03:00.6]} 4... Ne4 {[%clk 0:02:45.3]} 5. Nd2 {[%clk 0:02:59.2]}
5... Nxg5 {[%clk 0:02:35.2]} 6. hxg5 {[%clk 0:02:58.9]} 6... Bf5 {[%clk
0:02:32.9]} 7. Qb3 {[%clk 0:02:57.7]} 7... Qd7 {[%clk 0:02:29.4]} 8. Ngf3 {[%clk
0:02:52.7]} 8... c4 {[%clk 0:02:25.3]} 9. Qd1 {[%clk 0:02:50.9]} 9... Nc6 {[%clk
0:02:22.8]} 10. Nh4 {[%clk 0:02:39.6]} 10... e6 {[%clk 0:02:13.9]} 11. e3 {[%clk
0:02:11.5]} 11... Bd6 {[%clk 0:02:10.7]} 12. g4 {[%clk 0:02:07]} 12... Bg6
{[%clk 0:02:02.4]} 13. Nxg6 {[%clk 0:02:01.7]} 13... fxg6 {[%clk 0:02:02.1]} 14.
f4 {[%clk 0:02:01]} 14... b5 {[%clk 0:01:55.1]} 15. a3 {[%clk 0:01:57.4]} 15...
a5 {[%clk 0:01:53.9]} 16. Qc2 {[%clk 0:01:57.1]} 16... Ne7 {[%clk 0:01:44]} 17.
Bg2 {[%clk 0:01:51.6]} 17... a4 {[%clk 0:01:35.5]} 18. Nf3 {[%clk 0:01:44.7]}
18... O-O-O {[%clk 0:01:34.4]} 19. O-O-O {[%clk 0:01:42.6]} 19... Nc6 {[%clk
0:01:30.3]} 20. Rh3 {[%clk 0:01:40.1]} 20... Na5 {[%clk 0:01:07.5]} 21. Rdh1
{[%clk 0:01:39.3]} 21... Nb3+ {[%clk 0:01:07.7]} 22. Kb1 {[%clk 0:01:37.7]}
22... Qe7 {[%clk 0:00:59]} 23. Rxh7 {[%clk 0:01:33.4]} 23... Rxh7 {[%clk
0:00:57.8]} 24. Rxh7 {[%clk 0:01:34.3]} 24... Rg8 {[%clk 0:00:36.3]} 25. Ka2
{[%clk 0:01:31.6]} 25... b4 {[%clk 0:00:32.1]} 26. cxb4 {[%clk 0:01:30.4]} 26...
Bxb4 {[%clk 0:00:31.9]} 27. axb4 {[%clk 0:01:24.6]} 27... Qxb4 {[%clk
0:00:31.6]} 28. Qc3 {[%clk 0:01:25.2]} 28... Qb5 {[%clk 0:00:27.5]} 29. Bf1
{[%clk 0:01:12.8]} 29... Kc7 {[%clk 0:00:27.2]} 30. Be2 {[%clk 0:01:11.6]} 30...
Kd6 {[%clk 0:00:27.3]} 31. Nd2 {[%clk 0:01:06.8]} 31... Ra8 {[%clk 0:00:19.2]}
32. Bxc4 {[%clk 0:00:57.3]} 32... dxc4 {[%clk 0:00:16.4]} 33. Nxc4+ {[%clk
0:00:58.2]} 33... Kd5 {[%clk 0:00:12.8]} 34. e4+ {[%clk 0:00:58.1]} 34... Kxe4
{[%clk 0:00:08.8]} 35. Nd6+ {[%clk 0:00:58.4]} 35... Kd5 {[%clk 0:00:07.7]} 36.
Nxb5 {[%clk 0:00:59.3]} 1-0

[Event "Late-Titled-Tuesday-Blitz-March-05-2024"]
[Site "Chess.com"]
[Date "2024.03.05"]
[Round "8"]
[White "Szparu"]
[Black "maximnovik"]
[Result "1-0"]
[WhiteElo "2804"]
[BlackElo "2604"]
[TimeControl "180+1"]
[EndTime "15:24:29 PST"]
[Termination "Szparu won by checkmate"]

1. e4 {[%clk 0:03:00.9]} 1... c6 {[%clk 0:02:59.3]} 2. d4 {[%clk 0:02:59.7]}
2... d5 {[%clk 0:03:00.2]} 3. e5 {[%clk 0:02:59.9]} 3... Bf5 {[%clk 0:03:00.2]}
4. h4 {[%clk 0:02:55.1]} 4... Qb6 {[%clk 0:02:58.7]} 5. a4 {[%clk 0:02:54.5]}
5... c5 {[%clk 0:02:46]} 6. dxc5 {[%clk 0:02:53.2]} 6... Qxc5 {[%clk 0:02:45.4]}
7. c3 {[%clk 0:02:49.1]} 7... e6 {[%clk 0:02:28.4]} 8. Nd2 {[%clk 0:02:35.6]}
8... h6 {[%clk 0:02:27.6]} 9. Nb3 {[%clk 0:02:33.5]} 9... Qc7 {[%clk 0:02:27.1]}
10. f4 {[%clk 0:02:27.3]} 10... h5 {[%clk 0:02:25]} 11. Nf3 {[%clk 0:02:27]}
11... Nh6 {[%clk 0:02:23.7]} 12. Nfd4 {[%clk 0:02:27.1]} 12... Nc6 {[%clk
0:02:21.4]} 13. Nxf5 {[%clk 0:02:25.1]} 13... Nxf5 {[%clk 0:02:21.3]} 14. Bd3
{[%clk 0:02:25.4]} 14... g6 {[%clk 0:02:16]} 15. Bc2 {[%clk 0:02:16.2]} 15...
Be7 {[%clk 0:02:15.3]} 16. Bxf5 {[%clk 0:02:10]} 16... gxf5 {[%clk 0:02:15.3]}
17. Be3 {[%clk 0:02:07.2]} 17... O-O-O {[%clk 0:02:11]} 18. Nd4 {[%clk
0:02:05.7]} 18... a6 {[%clk 0:01:53.2]} 19. g3 {[%clk 0:01:58.2]} 19... Rdg8
{[%clk 0:01:52.2]} 20. Bf2 {[%clk 0:01:56.4]} 20... Rg4 {[%clk 0:01:42.7]} 21.
b4 {[%clk 0:01:56.1]} 21... Nb8 {[%clk 0:01:30.7]} 22. b5 {[%clk 0:01:48.1]}
22... a5 {[%clk 0:01:25.3]} 23. b6 {[%clk 0:01:43.9]} 23... Qc4 {[%clk
0:01:06.7]} 24. Rb1 {[%clk 0:01:41]} 24... Nc6 {[%clk 0:01:02.6]} 25. Rb5 {[%clk
0:01:31.6]} 25... Qxc3+ {[%clk 0:00:47.4]} 26. Ke2 {[%clk 0:01:28.6]} 26... Qc4+
{[%clk 0:00:37.9]} 27. Qd3 {[%clk 0:01:25.9]} 27... Qxd3+ {[%clk 0:00:33.5]} 28.
Kxd3 {[%clk 0:01:26.1]} 28... Nxd4 {[%clk 0:00:32.8]} 29. Kxd4 {[%clk 0:01:27]}
29... Bb4 {[%clk 0:00:32.4]} 30. Rc1+ {[%clk 0:01:24.3]} 30... Kb8 {[%clk
0:00:32.1]} 31. Rc7 {[%clk 0:01:25.2]} 31... Rc8 {[%clk 0:00:31.1]} 32. Rxf7
{[%clk 0:01:23.5]} 32... Rgg8 {[%clk 0:00:29.3]} 33. Kd3 {[%clk 0:01:18.3]}
33... Rc3+ {[%clk 0:00:28.2]} 34. Ke2 {[%clk 0:01:18.5]} 34... Rgc8 {[%clk
0:00:27.9]} 35. Rh7 {[%clk 0:01:03.6]} 35... Ra3 {[%clk 0:00:21.9]} 36. Rxh5
{[%clk 0:00:57]} 36... Rc2+ {[%clk 0:00:19.6]} 37. Kf1 {[%clk 0:00:56.8]} 37...
Kc8 {[%clk 0:00:17]} 38. Rh8+ {[%clk 0:00:54.2]} 38... Kd7 {[%clk 0:00:17.1]}
39. Rh7+ {[%clk 0:00:55.1]} 39... Kc6 {[%clk 0:00:16.5]} 40. Rc7# {[%clk
0:00:54.6]} 1-0

[Event "Late-Titled-Tuesday-Blitz-March-05-2024"]
[Site "Chess.com"]
[Date "2024.03.05"]
[Round "8"]
[White "vladgoncharov"]
[Black "masterofpuppets2"]
[Result "1/2-1/2"]
[WhiteElo "2624"]
[BlackElo "2493"]
[TimeControl "180+1"]
[EndTime "15:24:30 PST"]
[Termination "Game drawn by repetition"]

1. d4 {[%clk 0:03:00.9]} 1... d5 {[%clk 0:02:59.6]} 2. c4 {[%clk 0:02:58.5]}
2... e6 {[%clk 0:03:00.2]} 3. Nc3 {[%clk 0:02:58.2]} 3... c5 {[%clk 0:03:00.6]}
4. cxd5 {[%clk 0:02:57.9]} 4... exd5 {[%clk 0:03:01.5]} 5. Nf3 {[%clk
0:02:57.4]} 5... Nf6 {[%clk 0:03:02]} 6. g3 {[%clk 0:02:57.5]} 6... Nc6 {[%clk
0:03:02.2]} 7. Bg2 {[%clk 0:02:57.5]} 7... Be7 {[%clk 0:03:02.9]} 8. dxc5 {[%clk
0:02:51.5]} 8... Bxc5 {[%clk 0:03:02.3]} 9. O-O {[%clk 0:02:50.8]} 9... O-O
{[%clk 0:03:02.1]} 10. Bg5 {[%clk 0:02:49.9]} 10... d4 {[%clk 0:03:02.1]} 11.
Na4 {[%clk 0:02:49.2]} 11... Be7 {[%clk 0:03:00.9]} 12. Rc1 {[%clk 0:02:48.5]}
12... h6 {[%clk 0:02:57.6]} 13. Bf4 {[%clk 0:02:44.9]} 13... g5 {[%clk
0:02:54.5]} 14. Bd2 {[%clk 0:02:40.6]} 14... Be6 {[%clk 0:02:51.1]} 15. Nc5
{[%clk 0:02:36.4]} 15... Bxc5 {[%clk 0:02:38.5]} 16. Rxc5 {[%clk 0:02:35.7]}
16... Qd6 {[%clk 0:02:32.3]} 17. b4 {[%clk 0:01:49.5]} 17... Bxa2 {[%clk
0:02:29.9]} 18. Nxg5 {[%clk 0:01:47.9]} 18... hxg5 {[%clk 0:02:26.7]} 19. Bxg5
{[%clk 0:01:46.7]} 19... Nh7 {[%clk 0:02:03.7]} 20. Qd2 {[%clk 0:01:42.6]} 20...
Rfe8 {[%clk 0:01:53.7]} 21. Bxc6 {[%clk 0:01:37.9]} 21... bxc6 {[%clk
0:01:51.4]} 22. Qxa2 {[%clk 0:01:37.8]} 22... a5 {[%clk 0:01:46.2]} 23. Rxa5
{[%clk 0:01:21.8]} 23... Rxa5 {[%clk 0:01:34.1]} 24. Qxa5 {[%clk 0:01:20.7]}
24... Rxe2 {[%clk 0:01:21.1]} 25. Bf4 {[%clk 0:01:16.8]} 25... Qe6 {[%clk
0:01:12.5]} 26. Qd8+ {[%clk 0:01:12.7]} 26... Nf8 {[%clk 0:01:07]} 27. Qxd4
{[%clk 0:01:12.1]} 27... Re4 {[%clk 0:01:05]} 28. Qd2 {[%clk 0:01:07.9]} 28...
Re2 {[%clk 0:01:04.6]} 29. Qc1 {[%clk 0:01:05.6]} 29... Ng6 {[%clk 0:01:03.5]}
30. Rd1 {[%clk 0:01:01.6]} 30... Kh7 {[%clk 0:01:00.2]} 31. Qb1 {[%clk
0:00:42.3]} 31... Re4 {[%clk 0:00:56.8]} 32. Be3 {[%clk 0:00:38.7]} 32... Rxe3
{[%clk 0:00:47.6]} 33. fxe3 {[%clk 0:00:34.8]} 33... Qxe3+ {[%clk 0:00:48.5]}
34. Kg2 {[%clk 0:00:32.9]} 34... Qe2+ {[%clk 0:00:48.8]} 35. Kh3 {[%clk
0:00:31.9]} 35... Qe6+ {[%clk 0:00:48.5]} 36. Kg2 {[%clk 0:00:23.6]} 36... Qe2+
{[%clk 0:00:47.9]} 37. Kg1 {[%clk 0:00:23]} 37... Qe3+ {[%clk 0:00:47.9]} 38.
Kf1 {[%clk 0:00:23.1]} 38... Qf3+ {[%clk 0:00:48.4]} 39. Ke1 {[%clk 0:00:22]}
39... Qe3+ {[%clk 0:00:49]} 40. Kf1 {[%clk 0:00:22.3]} 40... Qf3+ {[%clk
0:00:49.7]} 41. Kg1 {[%clk 0:00:22.6]} 41... Qe3+ {[%clk 0:00:50]} 1/2-1/2

[Event "Late-Titled-Tuesday-Blitz-March-05-2024"]
[Site "Chess.com"]
[Date "2024.03.05"]
[Round "8"]
[White "trriinu"]
[Black "djano"]
[Result "0-1"]
[WhiteElo "2278"]
[BlackElo "2576"]
[TimeControl "180+1"]
[EndTime "15:24:32 PST"]
[Termination "djano won on time"]

1. e4 {[%clk 0:02:53.9]} 1... c5 {[%clk 0:03:00.2]} 2. Nf3 {[%clk 0:02:53.5]}
2... Nc6 {[%clk 0:03:00.8]} 3. Bb5 {[%clk 0:02:54.1]} 3... e5 {[%clk 0:03:00.7]}
4. O-O {[%clk 0:02:53.2]} 4... Nge7 {[%clk 0:03:01]} 5. c3 {[%clk 0:02:52.1]}
5... g6 {[%clk 0:03:00.8]} 6. d4 {[%clk 0:02:51.4]} 6... cxd4 {[%clk 0:03:01.7]}
7. cxd4 {[%clk 0:02:52.2]} 7... exd4 {[%clk 0:03:02.6]} 8. Nxd4 {[%clk
0:02:52.3]} 8... Bg7 {[%clk 0:03:03.3]} 9. Nxc6 {[%clk 0:02:42.2]} 9... bxc6
{[%clk 0:03:04]} 10. Bc4 {[%clk 0:02:41.2]} 10... O-O {[%clk 0:03:03.7]} 11. Nc3
{[%clk 0:02:41.2]} 11... Rb8 {[%clk 0:02:55.1]} 12. Qd6 {[%clk 0:02:29.1]} 12...
Rb6 {[%clk 0:02:26.1]} 13. Na4 {[%clk 0:02:05.9]} 13... Rb7 {[%clk 0:01:58.3]}
14. Ba6 {[%clk 0:01:52.2]} 14... Rc7 {[%clk 0:01:52.3]} 15. Bc4 {[%clk
0:01:45.5]} 15... c5 {[%clk 0:01:46.9]} 16. Bg5 {[%clk 0:01:06.8]} 16... Re8
{[%clk 0:01:47.2]} 17. Rad1 {[%clk 0:00:50.5]} 17... Rc6 {[%clk 0:01:33.8]} 18.
Qxc6 {[%clk 0:00:48]} 18... Nxc6 {[%clk 0:01:13.5]} 19. Bxd8 {[%clk 0:00:46.9]}
19... Nxd8 {[%clk 0:01:08.5]} 20. Nxc5 {[%clk 0:00:45.7]} 20... Bxb2 {[%clk
0:01:06.7]} 21. Nxd7 {[%clk 0:00:17.8]} 21... Nc6 {[%clk 0:01:07]} 22. e5 {[%clk
0:00:15.2]} 22... Bxd7 {[%clk 0:01:02.5]} 23. Rxd7 {[%clk 0:00:14.1]} 23... Nxe5
{[%clk 0:01:03.4]} 24. Rc7 {[%clk 0:00:12.9]} 24... Bd4 {[%clk 0:01:00.5]} 25.
Kh1 {[%clk 0:00:05.1]} 25... Bb6 {[%clk 0:01:00.7]} 26. Rb7 {[%clk 0:00:03.9]}
26... Nxc4 {[%clk 0:01:00.9]} 27. a4 {[%clk 0:00:03.4]} 27... Re2 {[%clk
0:00:59.6]} 28. h4 {[%clk 0:00:02.9]} 28... Nd2 {[%clk 0:00:57.2]} 29. Rd1
{[%clk 0:00:02.6]} 29... Rxf2 {[%clk 0:00:57.4]} 30. Rd7 {[%clk 0:00:02.3]}
30... Ne4 {[%clk 0:00:56.7]} 31. Re1 {[%clk 0:00:01.4]} 31... Ng3+ {[%clk
0:00:51.6]} 32. Kh2 {[%clk 0:00:01.9]} 32... Nf5 {[%clk 0:00:52.5]} 33. h5
{[%clk 0:00:01.7]} 33... Rf4 {[%clk 0:00:51.9]} 34. Re8+ {[%clk 0:00:01.4]}
34... Kg7 {[%clk 0:00:51.6]} 0-1